[Event "GER-ch Youth-U16 2022"]
[Site "Willingen"]
[Date "2022.06.05"]
[Round "2.9"]
[White "Bock, Marlon"]
[Black "Metzdorf, Matteo"]
[Result "1/2-1/2"]
[ECO "D05"]
[WhiteElo "1816"]
[BlackElo "2009"]
[Annotator "TA"]
[PlyCount "67"]
[EventDate "2022.06.05"]
[EventType "swiss"]
[EventRounds "9"]
[EventCountry "GER"]
[SourceTitle "playchess.com"]
[Source "ChessBase"]
[SourceQuality "1"]
[TimeControl "40/4500+30:900+30"]

{[%evp 11,67,8,41,32,29,25,36,15,13,17,4,-13,-10,-28,-24,-31,-20,-33,-29,-37,-30,-30,-33,-32,-27,-36,-28,-26,-34,-49,-33,-33,-31,-70,-77,-167,-42,-64,-50,-83,-91,-92,-40,-55,-20,-12,0,-18,-18,-28,-6,-41,-32,-53,-51,-39,-47,-61]} 1. d4 {[%emt 0:00:00]} Nf6 {[%emt 0:00:00]} 2. Nf3 {[%emt 0:00:00]} e6 {[%emt 0:00:00]} 3. e3 {[%emt 0:00:00]} c5 {[%emt 0:00:00]} 4. Bd3 {[%emt 0:00:00]} d5 {[%emt 0:00:00]} 5. b3 {[%emt 0:00:00]} Nc6 {[%emt 0:00:00]} 6. O-O {[%emt 0:00:00]} Qc7 {[%emt 0:00:00]} 7. Bb2 {[%emt 0:00:00] D05: Colle System with ...e6.} cxd4 {[%emt 0:00:00]} 8. exd4 {[%emt 0:00:00]} Nb4 {[%emt 0:00:00]} 9. Ne5 {[%emt 0:00:39] White is slightly better.} Nxd3 {[%emt 0:00:50]} 10. Qxd3 {[%emt 0:00:33]} Bd6 {[%emt 0:09:32]} 11. Nd2 {[%emt 0:06:40]} O-O {[%emt 0:08:52]} 12. Rac1 {[%emt 0:04:11]} b6 {[%emt 0:15:13]} 13. c4 {[%emt 0:05:24] [#]} dxc4 $146 {[%emt 0:03:13]} ({Predecessor:} 13... Qb7 14. c5 Be7 15. Qg3 bxc5 16. dxc5 a5 17. a3 Ne8 18. f4 f6 19. Nd3 Nc7 20. Qe3 Bd7 21. Rf3 Be8 22. Rg3 Bg6 23. Nf2 {½-½ (24) Seiler,P (1707)-Massie,J (1915) LSS email 2011}) 14. Ndxc4 {[%emt 0:06:50]} Bb7 {[%emt 0:02:11]} 15. Na5 {[%emt 0:06:54] Pair of Knights!} Qe7 {[%emt 0:01:26]} 16. Nxb7 {[%emt 0:08:38]} Qxb7 {[%emt 0:00:06]} 17. Rc2 {[%emt 0:03:58]} Nd5 {[%emt 0:08:23] [#] ...Bxe5 is the strong threat.} 18. Qe4 {[%emt 0:04:03]} Rac8 {[%emt 0:07:36] Strongly threatening ...f5.} 19. Nc4 {[%emt 0:04:48]} Be7 {[%emt 0:06:35]} 20. Rfc1 {[%emt 0:03:18][%cal Bf1c1,Bc1c2,Bc2c4][%mdl 32]} Rfd8 {[%emt 0:03:47]} (20... Bg5 {seems wilder.} 21. Ba3 Bxc1 22. Bxf8 Bf4) 21. Ne3 {[%emt 0:03:55]} Rxc2 {[%emt 0:03:23]} 22. Qxc2 {[%emt 0:04:40]} Bg5 {[%emt 0:03:20]} 23. Qe4 {[%emt 0:02:38]} (23. Qe2 $17 {might work better.}) 23... Qd7 {[%emt 0:01:15]} (23... Qa6 $19 24. Re1 Qxa2) 24. h4 {[%emt 0:02:10]} Bf4 {[%emt 0:02:48]} 25. Rc2 {[%emt 0:02:39] [#] aiming for Nxd5.} Bxe3 {[%emt 0:04:06]} 26. fxe3 {[%emt 0:03:38]} Rc8 {[%emt 0:00:24]} ({Black should try} 26... Qb5 $17) 27. Rc4 {[%emt 0:01:59]} b5 {[%emt 0:01:49][%cal Bb6b5,Bb5b4][%mdl 32]} 28. Rc5 {[%emt 0:02:58]} b4 {[%emt 0:00:47][%cal Oa7a5]} 29. Qd3 {[%emt 0:01:17]} h6 {[%emt 0:01:20]} 30. e4 {[%emt 0:01:08]} Nc3 {[%emt 0:01:56] And now ...Rxc5 would win.} 31. Rxc8+ {[%emt 0:03:13]} Qxc8 {[%emt 0:00:02] Black is slightly better.} 32. a3 {[%emt 0:00:49]} a5 {[%emt 0:00:24]} 33. axb4 {[%emt 0:01:02]} axb4 {[%emt 0:00:04]} 34. Kf2 {[%emt 0:01:32] Weighted Error Value: White=0.15 (very precise) /Black=0.17 (very precise)} 1/2-1/2

[Event "GER-ch Youth-U16 2022"]
[Site "Willingen"]
[Date "2022.06.05"]
[Round "2.10"]
[White "Albert, Markus"]
[Black "Tovmasyan, Minas"]
[Result "1-0"]
[ECO "B43"]
[WhiteElo "2053"]
[BlackElo "1933"]
[Annotator "TA"]
[PlyCount "63"]
[EventDate "2022.06.05"]
[EventType "swiss"]
[EventRounds "9"]
[EventCountry "GER"]
[SourceTitle "playchess.com"]
[Source "ChessBase"]
[SourceQuality "1"]
[TimeControl "40/4500+30:900+30"]

{[%evp 12,63,41,36,48,30,63,7,36,6,58,0,97,105,79,70,138,139,153,155,143,144,150,136,136,113,157,145,144,143,147,143,151,102,113,75,130,40,124,108,172,129,132,136,234,236,235,220,518,453,508,481,29984,29985]} 1. e4 c5 {[%emt 0:00:00]} 2. Nc3 {[%emt 0:00:00]} e6 {[%emt 0:00:00]} 3. Nf3 {[%emt 0:00:00]} a6 {[%emt 0:00:00]} 4. d4 {[%emt 0:00:00]} cxd4 {[%emt 0:00:00]} 5. Nxd4 {[%emt 0:00:00]} Qc7 {[%emt 0:00:00]} 6. a3 {[%emt 0:00:00]} Nf6 {[%emt 0:00:00]} 7. f4 $1 {[%emt 0:00:00][%mdl 4] is currently scoring better than 7.Be2.} d6 {[%emt 0:00:00] Prevents e5. B43: Sicilian: Kan Variation: 5 Nc3.} 8. Be3 {[%emt 0:00:00]} b5 {[%emt 0:00:00]} 9. Qf3 {[%emt 0:00:00]} ({Better is} 9. g4 $14) 9... Bb7 {[%emt 0:00:00] The position is equal.} 10. g4 {[%emt 0:00:00][%cal Bg2g4,Bg4g5][%mdl 32] With the idea g5.} Nc6 {[%emt 0:00:00]} (10... d5 $11) 11. O-O-O {[%emt 0:00:00]} (11. g5 $14 Nd7 12. Bg2) 11... Be7 {[%emt 0:00:36]} (11... d5 $11 {remains equal.}) 12. g5 $16 {[%emt 0:00:00]} Nd7 {[%emt 0:01:01]} 13. h4 $36 {[%emt 0:00:00][%mdl 2048] [#] White is pushing.} O-O-O $146 {[%emt 0:07:50]} (13... O-O $14) ({Predecessor:} 13... Rc8 14. h5 Nc5 15. g6 Nxd4 16. gxf7+ Kxf7 17. Rxd4 Bf6 18. Rg1 Na4 19. Rxa4 Bxc3 {0-1 (31) Nicolai,T (1909)-Neubauer,A (2145) Germany 2017}) 14. f5 {[%emt 0:02:38] White is more active.} Nde5 {[%emt 0:15:51] [#]} 15. Qh3 {[%emt 0:05:36] Hoping for f6.} Nxd4 {[%emt 0:07:51]} 16. Bxd4 {[%emt 0:00:11]} exf5 {[%emt 0:03:33] [#]} 17. exf5 $1 {[%emt 0:01:31] Black must now prevent f6+.} Kb8 {[%emt 0:02:20]} (17... f6 18. Bg2) 18. Bg2 {[%emt 0:01:04]} Rc8 {[%emt 0:20:04]} 19. Rhe1 {[%emt 0:03:25]} f6 {[%emt 0:02:27]} 20. gxf6 {[%emt 0:10:37]} Bxf6 {[%emt 0:04:26]} 21. Bxb7 {[%emt 0:03:27]} Kxb7 {[%emt 0:07:38]} 22. Kb1 {[%emt 0:04:25]} ({Reject} 22. Bxe5 $6 Bxe5 23. Re2 Rhe8 $11) (22. h5 $142) 22... Qc6 {[%emt 0:04:46]} 23. Qg3 {[%emt 0:01:27]} a5 {[%emt 0:02:30]} (23... Rc7 $142) 24. Ne4 {[%emt 0:02:43]} (24. Qf2 $16) 24... Rhd8 {[%emt 0:05:28]} (24... Qxc2+ $14 25. Ka1 Rhd8) 25. Rc1 {[%emt 0:09:57]} Qc4 {[%emt 0:01:07] [#]} (25... Rd7 $16) 26. Nxd6+ $1 {[%emt 0:00:52][%mdl 512]} Rxd6 {[%emt 0:00:02]} 27. Bxe5 {[%emt 0:00:08]} Rd2 {[%emt 0:00:56]} (27... Rd7 $16 {was worth a try.}) 28. Bxf6 $18 {[%emt 0:00:56] Really sharp!} gxf6 {[%emt 0:00:30]} 29. Re7+ {[%emt 0:00:41]} Ka8 $2 {[%emt 0:00:31]} (29... Rc7 30. Qf3+ Rd5 31. Rxc7+ Kxc7 32. Qg3+ Kb7 33. Qg7+ Qc7 34. Qxf6 Qd7) 30. Qe1 {[%emt 0:05:03]} Qd5 {[%emt 0:00:32]} 31. Rxh7 {[%emt 0:00:35] Strongly threatening Qe7.} b4 {[%emt 0:00:14]} (31... Rd8 $18 32. Qe3 Rd4) 32. Qe7 {[%emt 0:00:16][%csl LRb4,LRf6] Weighted Error Value: White=0.21 (precise) /Black=0.87} 1-0

[Event "GER-ch Youth-U16 2022"]
[Site "Willingen"]
[Date "2022.06.05"]
[Round "2.11"]
[White "Guo, Philipp Ziming"]
[Black "Gluma, Christian"]
[Result "0-1"]
[ECO "B06"]
[WhiteElo "1825"]
[BlackElo "2012"]
[Annotator "TA"]
[PlyCount "22"]
[EventDate "2022.06.05"]
[EventType "swiss"]
[EventRounds "9"]
[EventCountry "GER"]
[SourceTitle "playchess.com"]
[Source "ChessBase"]
[SourceQuality "1"]
[TimeControl "40/4500+30:900+30"]

{[%evp 13,22,56,49,49,62,30,45,37,37,19,35]} 1. e4 {[%emt 0:00:00] ChessBase II} g6 {[%emt 0:00:00]} 2. d4 {[%emt 0:00:00]} Bg7 {[%emt 0:00:00]} 3. Nc3 {[%emt 0:00:00]} c6 {[%emt 0:00:00]} 4. Bc4 {[%emt 0:00:00]} d5 {[%emt 0:00:00]} 5. exd5 {[%emt 0:00:00]} b5 {[%emt 0:00:00]} 6. Bb3 {[%emt 0:00:00]} b4 {[%emt 0:00:00]} 7. Na4 {[%emt 0:00:00]} cxd5 {[%emt 0:00:00]} 8. Nf3 {[%emt 0:00:00] is the legacy move (8.a3). B06: Modern Defence.} Bg4 {[%emt 0:00:00]} 9. h3 {[%emt 0:00:00]} Bxf3 {[%emt 0:00:00]} 10. Qxf3 {[%emt 0:00:00]} ({Of course not} 10. gxf3 Nc6 $11) 10... e6 {[%emt 0:00:00] [#]} 11. Be3 $146 {[%emt 0:00:00]} ({Predecessor:} 11. c3 Nc6 12. O-O Nge7 13. Bf4 O-O 14. Rfd1 bxc3 15. bxc3 Rc8 16. Qe2 Nf5 17. Rab1 {½-½ (31) Baumgartner,H-Van der Wiel,J (2465) Holzoster am See 1981 EXT 2015 [ChessBase II]}) 11... Nc6 {[%emt 0:00:00][%mdl 32768] White took control after the opening.  Weighted Error Value: White=0.16 (very precise) /Black=0.02 (flawless) . Loss on time!?} 0-1

[Event "GER-ch Youth-U16 2022"]
[Site "Willingen"]
[Date "2022.06.05"]
[Round "2.12"]
[White "Stork, Christopher"]
[Black "Kort, Felix"]
[Result "1/2-1/2"]
[ECO "C54"]
[WhiteElo "1994"]
[BlackElo "1894"]
[Annotator "NA COMBH"]
[PlyCount "176"]
[EventDate "2022.06.05"]
[EventType "swiss"]
[EventRounds "9"]
[EventCountry "GER"]
[SourceTitle "playchess.com"]
[Source "ChessBase"]
[SourceQuality "1"]
[TimeControl "40/4500+30:900+30"]

1. e4 {[%emt 0:00:00]} e5 {[%emt 0:00:00]} 2. Nf3 {[%emt 0:00:00]} Nc6 {[%emt 0:00:00]} 3. Bc4 {[%emt 0:00:00]} Bc5 {[%emt 0:00:00]} 4. c3 {[%emt 0:00:00]} Nf6 {[%emt 0:00:00]} 5. d4 {[%emt 0:00:00]} exd4 {[%emt 0:00:00]} 6. e5 {[%emt 0:00:00]} d5 {[%emt 0:00:00]} 7. Bb5 {[%emt 0:00:00]} Ne4 {[%emt 0:00:00]} 8. cxd4 {[%emt 0:00:00]} Bb6 {[%emt 0:00:00]} 9. Nc3 {[%emt 0:00:00]} O-O {[%emt 0:00:00]} 10. Be3 {[%emt 0:00:00]} Bg4 {[%emt 0:00:00]} 11. h3 {[%emt 0:00:00]} Bh5 {[%emt 0:00:00]} 12. Rc1 {[%emt 0:00:00]} Ne7 {[%emt 0:00:00]} 13. g4 {[%emt 0:00:00]} Bg6 {[%emt 0:00:00]} 14. h4 {[%emt 0:00:00]} f6 {[%emt 0:12:48]} 15. exf6 {[%emt 0:08:07]} Rxf6 {[%emt 0:05:39]} 16. Ne5 {[%emt 0:01:31]} c6 {[%emt 0:16:04]} 17. Be2 {[%emt 0:02:02]} Qd6 {[%emt 0:18:10]} 18. h5 {[%emt 0:03:45]} Be8 {[%emt 0:01:32]} 19. Nxe4 {[%emt 0:09:01]} dxe4 {[%emt 0:00:23]} 20. Nc4 {[%emt 0:01:52]} Qc7 {[%emt 0:05:54]} 21. g5 {[%emt 0:04:27]} Rf8 {[%emt 0:01:54]} 22. h6 {[%emt 0:03:07]} Nd5 {[%emt 0:03:15]} 23. hxg7 {[%emt 0:02:23]} Qxg7 {[%emt 0:00:22]} 24. Nxb6 {[%emt 0:07:36]} Nxe3 {[%emt 0:16:11]} 25. Qb3+ {[%emt 0:04:11]} Bf7 {[%emt 0:00:45]} 26. Qxe3 {[%emt 0:00:36]} axb6 {[%emt 0:00:05]} 27. a3 {[%emt 0:00:23]} Rfd8 {[%emt 0:02:43]} 28. Bc4 {[%emt 0:06:21]} Bxc4 {[%emt 0:00:56]} 29. Rxc4 {[%emt 0:00:01]} b5 {[%emt 0:00:34]} 30. Rb4 {[%emt 0:02:02]} Qg6 {[%emt 0:00:39]} 31. Rh6 {[%emt 0:01:37]} Qf5 {[%emt 0:00:01]} 32. Rf6 {[%emt 0:04:43]} Qd5 {[%emt 0:01:34]} 33. g6 {[%emt 0:01:18]} hxg6 {[%emt 0:01:01]} 34. Rxg6+ {[%emt 0:05:12]} Kf7 {[%emt 0:00:32]} 35. Rg5 {[%emt 0:00:32]} Qd6 {[%emt 0:01:06]} 36. Qh3 {[%emt 0:04:02]} Rh8 {[%emt 0:00:46]} 37. Qf5+ {[%emt 0:01:01]} Ke8 {[%emt 0:00:27]} 38. Rg6 {[%emt 0:05:27]} Qf8 {[%emt 0:00:30]} 39. Qxe4+ {[%emt 0:06:06]} Kd7 {[%emt 0:00:01]} 40. d5 {[%emt 0:01:05]} Re8 {[%emt 0:00:56]} 41. Re6 {[%emt 0:16:00]} Qc5 {[%emt 0:00:00]} 42. Rd4 {[%emt 0:00:00]} Kc7 {[%emt 0:01:20]} 43. Rxe8 {[%emt 0:00:00]} Rxe8 {[%emt 0:00:29]} 44. Qxe8 {[%emt 0:00:00]} Qxd4 {[%emt 0:00:07]} 45. Qe7+ {[%emt 0:00:00]} Kb6 {[%emt 0:02:07]} 46. d6 {[%emt 0:00:00]} Qxb2 {[%emt 0:02:27]} 47. d7 {[%emt 0:00:00]} Qc1+ {[%emt 0:03:16]} 48. Ke2 {[%emt 0:00:00]} Qc2+ {[%emt 0:03:49]} 49. Ke3 {[%emt 0:00:00]} Qc3+ {[%emt 0:02:30]} 50. Kf4 {[%emt 0:00:00]} Qd4+ {[%emt 0:00:26]} 51. Kg5 {[%emt 0:00:00]} Qd5+ {[%emt 0:01:20]} 52. Kh6 {[%emt 0:00:00]} Qh1+ {[%emt 0:00:53]} 53. Kg7 {[%emt 0:00:00]} Qg2+ {[%emt 0:00:26]} 54. Kf8 {[%emt 0:00:54]} Qf3+ {[%emt 0:00:08]} 55. Qf7 {[%emt 0:00:41]} Qd3 {[%emt 0:01:40]} 56. Qe6 {[%emt 0:09:22]} Kc7 {[%emt 0:01:02]} 57. Ke8 {[%emt 0:00:24]} Qd4 {[%emt 0:00:38]} 58. f4 {[%emt 0:00:41]} Qh8+ {[%emt 0:00:41]} 59. Ke7 {[%emt 0:00:45]} Qh7+ {[%emt 0:00:13]} 60. Qf7 {[%emt 0:00:49]} Qxf7+ {[%emt 0:01:22]} 61. Kxf7 {[%emt 0:00:02]} Kxd7 {[%emt 0:00:09]} 62. f5 {[%emt 0:00:10]} c5 {[%emt 0:00:05]} 63. f6 {[%emt 0:00:17]} c4 {[%emt 0:00:02]} 64. Kg7 {[%emt 0:00:35]} c3 {[%emt 0:00:28]} 65. f7 {[%emt 0:00:04]} c2 {[%emt 0:00:03]} 66. f8=Q {[%emt 0:00:05]} c1=Q {[%emt 0:00:07]} 67. Qf7+ {[%emt 0:01:13]} Kc6 {[%emt 0:00:12]} 68. Qe6+ {[%emt 0:00:51]} Kc7 {[%emt 0:00:05]} 69. Qe5+ {[%emt 0:01:35]} Kb6 {[%emt 0:00:31]} 70. Qe6+ {[%emt 0:00:13]} Ka5 {[%emt 0:00:42]} 71. Qb3 {[%emt 0:00:45]} Qc4 {[%emt 0:00:40]} 72. Qe3 {[%emt 0:01:00]} Ka4 {[%emt 0:01:31]} 73. Kf6 {[%emt 0:00:36]} b6 {[%emt 0:01:40]} 74. Qxb6 {[%emt 0:00:35]} Kxa3 {[%emt 0:00:05]} 75. Ke5 {[%emt 0:00:37]} b4 {[%emt 0:00:35]} 76. Qa7+ {[%emt 0:00:41]} Kb2 {[%emt 0:00:15]} 77. Qf2+ {[%emt 0:00:41]} Qc2 {[%emt 0:00:06]} 78. Qf1 {[%emt 0:00:24]} b3 {[%emt 0:00:26]} 79. Kd4 {[%emt 0:00:14]} Qd2+ {[%emt 0:01:13]} 80. Ke4 {[%emt 0:00:29]} Ka2 {[%emt 0:00:18]} 81. Qa6+ {[%emt 0:00:07]} Kb1 {[%emt 0:00:06]} 82. Qf1+ {[%emt 0:00:41]} Qc1 {[%emt 0:00:11]} 83. Qb5 {[%emt 0:00:26]} b2 {[%emt 0:00:13]} 84. Qb4 {[%emt 0:00:24]} Qc2+ {[%emt 0:00:27]} 85. Ke3 {[%emt 0:00:29]} Qc6 {[%emt 0:01:40]} 86. Kd3 {[%emt 0:00:27]} Qa6+ {[%emt 0:00:53]} 87. Kd2 {[%emt 0:00:19]} Ka1 {[%emt 0:00:53]} 88. Qd4 {[%emt 0:01:12]} Qa5+ {[%emt 0:00:38]} 1/2-1/2

[Event "GER-ch Youth-U16 2022"]
[Site "Willingen"]
[Date "2022.06.05"]
[Round "2.13"]
[White "Hecht, Jonas Christian"]
[Black "Bungarten, Jona"]
[Result "0-1"]
[ECO "D02"]
[WhiteElo "1884"]
[BlackElo "1843"]
[Annotator "NA RC COMBH"]
[PlyCount "188"]
[EventDate "2022.06.05"]
[EventType "swiss"]
[EventRounds "9"]
[EventCountry "GER"]
[SourceTitle "playchess.com"]
[Source "ChessBase"]
[SourceQuality "1"]
[TimeControl "40/4500+30:900+30"]

1. d4 {[%emt 0:00:00]} d5 {[%emt 0:00:00]} 2. Bf4 {[%emt 0:00:00]} Nf6 {[%emt 0:00:00]} 3. Nf3 {[%emt 0:00:00]} c5 {[%emt 0:00:00]} 4. e3 {[%emt 0:00:00]} Nc6 {[%emt 0:00:00]} 5. c3 {[%emt 0:00:00]} Qb6 {[%emt 0:00:00]} 6. Qb3 {[%emt 0:00:00]} c4 {[%emt 0:00:00]} 7. Qc2 {[%emt 0:00:00]} Bf5 {[%emt 0:00:00]} 8. Qc1 {[%emt 0:00:00]} h6 {[%emt 0:00:00]} 9. h3 {[%emt 0:00:00]} e6 {[%emt 0:00:00]} 10. Nbd2 {[%emt 0:00:00]} Qd8 {[%emt 0:00:00]} 11. b3 {[%emt 0:00:00]} b5 {[%emt 0:00:00]} 12. a4 {[%emt 0:00:00]} a6 {[%emt 0:07:37]} 13. Be2 {[%emt 0:03:42]} Be7 {[%emt 0:00:37]} 14. O-O {[%emt 0:01:34]} O-O {[%emt 0:00:14]} 15. axb5 {[%emt 0:09:15]} axb5 {[%emt 0:00:07]} 16. b4 {[%emt 0:01:05]} Qb6 {[%emt 0:03:50]} 17. Qb2 {[%emt 0:01:54]} Qb7 {[%emt 0:04:42]} 18. Ne5 {[%emt 0:18:40]} Nxe5 {[%emt 0:01:57]} 19. dxe5 {[%emt 0:04:17]} Nd7 {[%emt 0:01:10]} 20. Nf3 {[%emt 0:00:58]} f6 {[%emt 0:02:03]} 21. Bh2 {[%emt 0:09:34]} fxe5 {[%emt 0:02:57]} 22. Nxe5 {[%emt 0:02:02]} Bf6 {[%emt 0:00:42]} 23. Nf3 {[%emt 0:08:44]} e5 {[%emt 0:02:29]} 24. Rfd1 {[%emt 0:01:49]} Rfe8 {[%emt 0:06:09]} 25. Qd2 {[%emt 0:04:22]} Nb6 {[%emt 0:02:46]} 26. Rxa8 {[%emt 0:04:44]} Qxa8 {[%emt 0:00:15]} 27. Qb2 {[%emt 0:03:38]} Qc6 {[%emt 0:04:02]} 28. Qd2 {[%emt 0:01:27]} Qe6 {[%emt 0:02:25]} 29. Ra1 {[%emt 0:01:41]} Na4 {[%emt 0:03:07]} 30. Bd1 {[%emt 0:02:45]} Qc6 {[%emt 0:13:42]} 31. Bxa4 {[%emt 0:01:23]} bxa4 {[%emt 0:00:09]} 32. Qd1 {[%emt 0:00:52]} Bd7 {[%emt 0:00:47]} 33. Bg3 {[%emt 0:00:21]} Qe6 {[%emt 0:01:34]} 34. Ra3 {[%emt 0:02:10]} Bb5 {[%emt 0:03:07]} 35. Qd2 {[%emt 0:01:34]} Rd8 {[%emt 0:00:18]} 36. Kh1 {[%emt 0:01:19]} Qf5 {[%emt 0:00:50]} 37. Ra1 {[%emt 0:00:56]} Qe4 {[%emt 0:02:36]} 38. Rd1 {[%emt 0:01:47]} Kf7 {[%emt 0:04:08]} 39. Kg1 {[%emt 0:00:57]} Ke6 {[%emt 0:00:38]} 40. Qb2 {[%emt 0:00:46]} Ra8 {[%emt 0:01:01]} 41. Qb1 {[%emt 0:00:00]} Qxb1 {[%emt 0:00:00]} 42. Rxb1 {[%emt 0:00:00]} d4 {[%emt 0:00:00]} 43. exd4 {[%emt 0:00:00]} exd4 {[%emt 0:00:00]} 44. Nxd4+ {[%emt 0:00:10]} Bxd4 {[%emt 0:00:00]} 45. cxd4 {[%emt 0:00:03]} Kd5 {[%emt 0:00:00]} 46. Be5 {[%emt 0:01:30]} g5 {[%emt 0:00:00]} 47. Kf1 {[%emt 0:01:36]} Ke4 {[%emt 0:00:00]} 48. Ke2 {[%emt 0:03:59]} c3+ {[%emt 0:00:00]} 49. Kd1 {[%emt 0:00:07]} Rc8 {[%emt 0:00:00]} 50. Ra1 {[%emt 0:00:23]} Bc4 {[%emt 0:01:21]} 51. Kc1 {[%emt 0:00:40]} Bb3 {[%emt 0:00:26]} 52. b5 {[%emt 0:00:51]} Kd5 {[%emt 0:00:12]} 53. b6 {[%emt 0:03:21]} Rf8 {[%emt 0:02:37]} 54. f3 {[%emt 0:01:37]} Rf7 {[%emt 0:00:13]} 55. Kb1 {[%emt 0:02:14]} Rb7 {[%emt 0:00:38]} 56. Bc7 {[%emt 0:00:36]} Kxd4 {[%emt 0:00:07]} 57. g3 {[%emt 0:00:57]} Kd3 {[%emt 0:05:18]} 58. Kc1 {[%emt 0:00:59]} Ke3 {[%emt 0:05:10]} 59. f4 {[%emt 0:00:18]} Ke4 {[%emt 0:02:20]} 60. Ra3 {[%emt 0:01:47]} gxf4 {[%emt 0:00:14]} 61. gxf4 {[%emt 0:00:07]} Kf5 {[%emt 0:00:20]} 62. Ra1 {[%emt 0:02:15]} Ke6 {[%emt 0:00:14]} 63. Ra3 {[%emt 0:00:36]} Kd7 {[%emt 0:03:12]} 64. Be5 {[%emt 0:00:12]} Rxb6 {[%emt 0:00:08]} 65. Bxc3 {[%emt 0:00:05]} Rg6 {[%emt 0:00:50]} 66. Ra1 {[%emt 0:00:55]} Rg2 {[%emt 0:00:38]} 67. Bd2 {[%emt 0:00:27]} Ke6 {[%emt 0:00:23]} 68. f5+ {[%emt 0:00:33]} Kxf5 {[%emt 0:00:13]} 69. Bxh6 {[%emt 0:00:06]} Rc2+ {[%emt 0:00:27]} 70. Kb1 {[%emt 0:00:07]} Rh2 {[%emt 0:00:09]} 71. Bg7 {[%emt 0:03:16]} Kg5 {[%emt 0:01:06]} 72. Kc1 {[%emt 0:00:55]} Rc2+ {[%emt 0:00:34]} 73. Kb1 {[%emt 0:00:35]} Kh4 {[%emt 0:00:08]} 74. Bf6+ {[%emt 0:00:09]} Kxh3 {[%emt 0:00:06]} 75. Bh8 {[%emt 0:00:10]} Kg3 {[%emt 0:00:08]} 76. Bg7 {[%emt 0:00:05]} Kf3 {[%emt 0:00:06]} 77. Bf6 {[%emt 0:00:04]} Ke3 {[%emt 0:00:17]} 78. Bg5+ {[%emt 0:00:20]} Kd3 {[%emt 0:00:06]} 79. Bf6 {[%emt 0:00:05]} Rf2 {[%emt 0:00:48]} 80. Bh8 {[%emt 0:00:22]} Kc4 {[%emt 0:00:53]} 81. Be5 {[%emt 0:00:28]} Re2 {[%emt 0:01:43]} 82. Bg7 {[%emt 0:00:09]} Rg2 {[%emt 0:01:01]} 83. Be5 {[%emt 0:01:01]} Rf2 {[%emt 0:00:04]} 84. Kc1 {[%emt 0:00:30]} Ba2 {[%emt 0:01:02]} 85. Bg7 {[%emt 0:01:15]} Kb3 {[%emt 0:00:50]} 86. Bh8 {[%emt 0:00:19]} a3 {[%emt 0:00:25]} 87. Bg7 {[%emt 0:00:04]} Rf1+ {[%emt 0:00:39]} 88. Kd2 {[%emt 0:00:13]} Bb1 {[%emt 0:00:09]} 89. Be5 {[%emt 0:00:55]} a2 {[%emt 0:00:08]} 90. Bg7 {[%emt 0:00:18]} Rf7 {[%emt 0:00:37]} 91. Be5 {[%emt 0:00:30]} Rd7+ {[%emt 0:00:08]} 92. Ke3 Re7 93. Kf4 Rxe5 94. Kxe5 Kb2 0-1

[Event "GER-ch Youth-U16 2022"]
[Site "Willingen"]
[Date "2022.06.05"]
[Round "2.14"]
[White "Heinrich, John"]
[Black "Neuber, Pascal"]
[Result "1-0"]
[ECO "B10"]
[WhiteElo "2011"]
[BlackElo "1802"]
[Annotator "TA"]
[PlyCount "79"]
[EventDate "2022.06.05"]
[EventType "swiss"]
[EventRounds "9"]
[EventCountry "GER"]
[SourceTitle "playchess.com"]
[Source "ChessBase"]
[SourceQuality "1"]
[TimeControl "40/4500+30:900+30"]

{[%evp 9,79,51,86,82,86,93,92,93,112,89,79,13,28,25,16,13,64,55,54,45,62,45,76,66,76,68,83,80,82,68,95,98,110,83,91,84,110,100,156,150,260,255,567,368,349,372,354,341,333,327,411,405,369,330,429,434,461,459,455,457,586,575,570,571,547,547,741,710,693,592,588,580]} 1. e4 {[%emt 0:00:00]} c6 {[%emt 0:00:00]} 2. Nc3 {[%emt 0:00:00]} d5 {[%emt 0:00:00]} 3. Nf3 {[%emt 0:00:00]} dxe4 {[%emt 0:00:00]} 4. Nxe4 {[%emt 0:00:00]} Bf5 {[%emt 0:00:00]} 5. Ng3 {[%emt 0:00:00]} Bg6 {[%emt 0:00:00] [#]} 6. h4 $1 {[%emt 0:00:00][%cal Bh2h4,Bh4h5][%mdl 32] B11: Caro-Kann: Two Knights Variation.} Nf6 {[%emt 0:03:03]} 7. h5 {[%emt 0:00:00]} Be4 {[%emt 0:00:11]} 8. Nxe4 {[%emt 0:00:00] White is better.} Nxe4 {[%emt 0:00:02] [#]} 9. Bd3 $146 {[%emt 0:05:07]} ({Predecessor:} 9. d3 Nf6 10. h6 gxh6 11. Bxh6 Bxh6 12. Rxh6 Qb6 13. Rxf6 exf6 14. Qe2+ {0-1 (64) Shtyka,S (2154)-Tsydypov,Z (2533) Chess.com INT 2022}) 9... Nf6 {[%emt 0:04:36]} 10. b3 {[%emt 0:03:12]} (10. h6 $16) 10... Nbd7 {[%emt 0:01:48]} 11. Bb2 {[%emt 0:00:47][%cal Oh5h6]} e6 {[%emt 0:01:43]} 12. h6 {[%emt 0:07:46]} gxh6 {[%emt 0:03:13]} (12... g6 $11) 13. Qe2 {[%emt 0:10:41]} Rg8 {[%emt 0:01:23]} 14. g3 {[%emt 0:04:49][%mdl 1024] White has compensation.} Nc5 {[%emt 0:12:51]} 15. Bf5 {[%emt 0:05:30]} Qe7 {[%emt 0:04:54]} 16. Bh3 {[%emt 0:02:31]} O-O-O {[%emt 0:00:52]} 17. O-O-O {[%emt 0:02:19]} Bg7 {[%emt 0:03:32]} 18. Kb1 {[%emt 0:04:16]} Nd5 {[%emt 0:08:43]} 19. d4 {[%emt 0:02:07]} Na6 {[%emt 0:13:02]} 20. c4 {[%emt 0:01:04]} Nb6 {[%emt 0:01:04]} 21. Ne5 {[%emt 0:02:11][%cal Oe5f7] Black must now prevent Nxf7!} Nc7 {[%emt 0:10:19]} 22. Rhe1 {[%emt 0:10:09] White is more active.} Bxe5 {[%emt 0:02:48]} 23. Qxe5 {[%emt 0:02:12]} Rg5 {[%emt 0:01:08]} (23... Qg5 $142) 24. Qf4 {[%emt 0:02:48]} a5 {[%emt 0:02:37] [#]} (24... Qf8 $16 {was called for.} 25. Rh1 Kb8) 25. d5 $1 $18 {[%emt 0:03:16]} Qb4 $2 {[%emt 0:07:39]} (25... Nbxd5 26. cxd5 Nxd5) 26. dxc6 {[%emt 0:08:13]} Rxd1+ {[%emt 0:01:29]} 27. Rxd1 {[%emt 0:00:06] Strongly threatening cxb7+. Really sharp!} bxc6 {[%emt 0:00:02]} 28. Qxf7 {[%emt 0:00:48]} a4 {[%emt 0:01:06]} 29. Bxe6+ {[%emt 0:00:59]} ({Not} 29. Qxh7 axb3 30. axb3 (30. Qxh6 Ra5 $11) 30... Qxb3 $11) 29... Kb7 {[%emt 0:00:12]} 30. Kc2 {[%emt 0:01:09]} Ra5 {[%emt 0:01:36]} 31. Bh3 {[%emt 0:04:05] This bishop pair is nice.} Qc5 {[%emt 0:00:27]} 32. Bg2 {[%emt 0:02:22] White is clearly winning.} axb3+ {[%emt 0:00:18]} 33. axb3 {[%emt 0:00:07]} Ra2 {[%emt 0:00:46]} 34. Kb1 {[%emt 0:00:57]} Ra5 {[%emt 0:00:26]} 35. Qf6 {[%emt 0:00:43] Threatens to win with Rd6.} Nxc4 {[%emt 0:00:38]} 36. bxc4 {[%emt 0:00:45]} Qxc4 {[%emt 0:00:02]} 37. Qc3 {[%emt 0:00:47]} Qa2+ {[%emt 0:00:22]} 38. Kc2 {[%emt 0:00:33]} Qa4+ {[%emt 0:00:43]} 39. Qb3+ {[%emt 0:00:08]} Qxb3+ {[%emt 0:00:24]} 40. Kxb3 {[%emt 0:00:05] Weighted Error Value: White=0.18 (very precise) /Black=0.34} 1-0